[Event "Late-Titled-Tuesday-Blitz-March-05-2024"]
[Site "Chess.com"]
[Date "2024.03.05"]
[Round "8"]
[White "Fh2411"]
[Black "Vegan4future"]
[Result "1-0"]
[WhiteElo "2652"]
[BlackElo "2487"]
[TimeControl "180+1"]
[EndTime "15:25:09 PST"]
[Termination "Fh2411 won by checkmate"]

1. d4 {[%clk 0:03:00.9]} 1... f5 {[%clk 0:02:54.7]} 2. g3 {[%clk 0:02:59.4]}
2... e6 {[%clk 0:02:51.5]} 3. Bg2 {[%clk 0:02:59.8]} 3... Nf6 {[%clk 0:02:52.1]}
4. Nd2 {[%clk 0:02:52.6]} 4... d5 {[%clk 0:02:50.8]} 5. Ndf3 {[%clk 0:02:49.4]}
5... Nbd7 {[%clk 0:02:43.9]} 6. Nh3 {[%clk 0:02:46.2]} 6... Bd6 {[%clk
0:02:43.2]} 7. Bf4 {[%clk 0:02:46.7]} 7... O-O {[%clk 0:02:43.1]} 8. c3 {[%clk
0:02:28.2]} 8... Qe7 {[%clk 0:02:34]} 9. Ne5 {[%clk 0:02:05.4]} 9... Bxe5 {[%clk
0:02:19.4]} 10. dxe5 {[%clk 0:02:01.7]} 10... Ng4 {[%clk 0:02:18.7]} 11. O-O
{[%clk 0:01:05.9]} 11... h6 {[%clk 0:02:13.7]} 12. Qd4 {[%clk 0:00:44]} 12... c5
{[%clk 0:02:13.2]} 13. Qd1 {[%clk 0:00:37.1]} 13... Ngxe5 {[%clk 0:02:11.1]} 14.
Bxe5 {[%clk 0:00:37.2]} 14... Nxe5 {[%clk 0:02:12]} 15. Nf4 {[%clk 0:00:37.6]}
15... Bd7 {[%clk 0:02:03.1]} 16. Qc1 {[%clk 0:00:32.1]} 16... Bc6 {[%clk
0:01:54.6]} 17. Qe3 {[%clk 0:00:20.6]} 17... Qd6 {[%clk 0:01:55]} 18. b3 {[%clk
0:00:19.6]} 18... Rae8 {[%clk 0:01:52.8]} 19. Rad1 {[%clk 0:00:15.8]} 19... Ng4
{[%clk 0:01:37.9]} 20. Qd2 {[%clk 0:00:15.8]} 20... Nf6 {[%clk 0:01:35.6]} 21.
Ng6 {[%clk 0:00:15.2]} 21... Rf7 {[%clk 0:01:35.6]} 22. f4 {[%clk 0:00:15.2]}
22... Ne4 {[%clk 0:01:33.7]} 23. Bxe4 {[%clk 0:00:15.4]} 23... fxe4 {[%clk
0:01:34.6]} 24. e3 {[%clk 0:00:15.1]} 24... b6 {[%clk 0:01:27.8]} 25. Qg2 {[%clk
0:00:13.9]} 25... Bb7 {[%clk 0:01:27.4]} 26. Rf2 {[%clk 0:00:14.1]} 26... Rf6
{[%clk 0:01:25.6]} 27. Ne5 {[%clk 0:00:13.8]} 27... a5 {[%clk 0:01:26]} 28. Qh3
{[%clk 0:00:13.5]} 28... a4 {[%clk 0:01:25.4]} 29. g4 {[%clk 0:00:12.7]} 29...
axb3 {[%clk 0:01:22.1]} 30. axb3 {[%clk 0:00:13.6]} 30... Ra8 {[%clk 0:01:21.7]}
31. Rg2 {[%clk 0:00:13.9]} 31... d4 {[%clk 0:00:59.1]} 32. g5 {[%clk 0:00:09.3]}
32... hxg5 {[%clk 0:01:00]} 33. Rxg5 {[%clk 0:00:10]} 33... Ra2 {[%clk 0:00:51]}
34. Kh1 {[%clk 0:00:09.2]} 34... Rxf4 {[%clk 0:00:33.2]} 35. Rdg1 {[%clk
0:00:06.6]} 35... Qe7 {[%clk 0:00:25.4]} 36. Rxg7+ {[%clk 0:00:06.6]} 36... Qxg7
{[%clk 0:00:26.3]} 37. Rxg7+ {[%clk 0:00:07]} 37... Kxg7 {[%clk 0:00:27.2]} 38.
Qg3+ {[%clk 0:00:07.6]} 38... Kh7 {[%clk 0:00:25.9]} 39. Qxf4 {[%clk 0:00:07.8]}
39... dxc3 {[%clk 0:00:26.8]} 40. Qf7+ {[%clk 0:00:08.2]} 40... Kh6 {[%clk
0:00:25.9]} 41. Qg6# {[%clk 0:00:08.2]} 1-0

[Event "Late-Titled-Tuesday-Blitz-March-05-2024"]
[Site "Chess.com"]
[Date "2024.03.05"]
[Round "8"]
[White "VladimirKramnik"]
[Black "ameetghasi100"]
[Result "1-0"]
[WhiteElo "2993"]
[BlackElo "2790"]
[TimeControl "180+1"]
[EndTime "15:25:11 PST"]
[Termination "VladimirKramnik won by resignation"]

1. e4 {[%clk 0:03:00.9]} 1... g6 {[%clk 0:02:58.9]} 2. d4 {[%clk 0:03:00.1]}
2... d6 {[%clk 0:02:59.6]} 3. Nf3 {[%clk 0:02:59.3]} 3... Bg7 {[%clk 0:03:00]}
4. Be2 {[%clk 0:02:59.4]} 4... Nf6 {[%clk 0:03:00.5]} 5. Nc3 {[%clk 0:02:59.5]}
5... O-O {[%clk 0:03:00.9]} 6. O-O {[%clk 0:02:59.5]} 6... Nc6 {[%clk
0:03:01.3]} 7. d5 {[%clk 0:02:56.6]} 7... Nb8 {[%clk 0:03:01.6]} 8. h3 {[%clk
0:02:55.6]} 8... c6 {[%clk 0:03:02]} 9. Re1 {[%clk 0:02:55.5]} 9... a6 {[%clk
0:03:00.5]} 10. a4 {[%clk 0:02:51.4]} 10... a5 {[%clk 0:02:39.4]} 11. Bf4 {[%clk
0:02:50.3]} 11... Na6 {[%clk 0:02:37]} 12. Qd2 {[%clk 0:02:47.5]} 12... Nc5
{[%clk 0:02:36.5]} 13. Bf1 {[%clk 0:02:45.8]} 13... Re8 {[%clk 0:02:35.4]} 14.
dxc6 {[%clk 0:02:37.3]} 14... bxc6 {[%clk 0:02:34.1]} 15. e5 {[%clk 0:02:36.4]}
15... dxe5 {[%clk 0:02:14.3]} 16. Qxd8 {[%clk 0:02:36.1]} 16... Rxd8 {[%clk
0:02:14.4]} 17. Nxe5 {[%clk 0:02:36.5]} 17... Bb7 {[%clk 0:02:13.2]} 18. Be3
{[%clk 0:02:27.4]} 18... Ncd7 {[%clk 0:02:09.7]} 19. Nxd7 {[%clk 0:02:08.5]}
19... Rxd7 {[%clk 0:02:07.7]} 20. Bc5 {[%clk 0:02:02.3]} 20... e6 {[%clk
0:01:44.8]} 21. Rad1 {[%clk 0:02:01.1]} 21... Ba6 {[%clk 0:01:44.3]} 22. Bxa6
{[%clk 0:01:50.3]} 22... Rxa6 {[%clk 0:01:43.8]} 23. b3 {[%clk 0:01:49.3]} 23...
Ra8 {[%clk 0:01:40.7]} 24. Kf1 {[%clk 0:01:38.3]} 24... Nd5 {[%clk 0:01:18.1]}
25. Ne4 {[%clk 0:01:37.3]} 25... Rb7 {[%clk 0:01:18.5]} 26. g3 {[%clk
0:01:32.2]} 26... h6 {[%clk 0:01:16.7]} 27. Kg2 {[%clk 0:01:31]} 27... Nb4
{[%clk 0:00:47.2]} 28. Bxb4 {[%clk 0:01:24.7]} 28... Rxb4 {[%clk 0:00:46.8]} 29.
Rd7 {[%clk 0:01:24.4]} 29... Rf8 {[%clk 0:00:28.7]} 30. Rc7 {[%clk 0:01:16.9]}
30... Rb6 {[%clk 0:00:18.6]} 31. Rd1 {[%clk 0:01:15.8]} 31... Rb4 {[%clk
0:00:16.5]} 32. Nc5 {[%clk 0:01:08.3]} 32... h5 {[%clk 0:00:07.4]} 33. Rdd7
{[%clk 0:01:02.4]} 33... h4 {[%clk 0:00:07]} 34. Nxe6 {[%clk 0:00:59.3]} 34...
Be5 {[%clk 0:00:04.6]} 35. Nxf8 {[%clk 0:00:56.5]} 35... Bxc7 {[%clk 0:00:04]}
36. Rxc7 {[%clk 0:00:55.7]} 36... Kxf8 {[%clk 0:00:03.8]} 37. Rxc6 {[%clk
0:00:55.9]} 37... hxg3 {[%clk 0:00:04.2]} 38. Kxg3 {[%clk 0:00:54.9]} 38... Rd4
{[%clk 0:00:05.1]} 39. Rc5 {[%clk 0:00:51.8]} 39... Rd2 {[%clk 0:00:04.9]} 40.
Kf3 {[%clk 0:00:51.8]} 40... f5 {[%clk 0:00:01.8]} 41. Ke3 {[%clk 0:00:51.6]}
41... Rd7 {[%clk 0:00:02]} 42. Rxa5 {[%clk 0:00:51.1]} 42... Rd1 {[%clk
0:00:02.9]} 43. Rc5 {[%clk 0:00:48.2]} 43... Rh1 {[%clk 0:00:03]} 44. a5 {[%clk
0:00:47.8]} 44... Rxh3+ {[%clk 0:00:03.6]} 45. Kf4 {[%clk 0:00:47.7]} 45... Kf7
{[%clk 0:00:03.5]} 46. a6 {[%clk 0:00:46]} 46... Kf6 {[%clk 0:00:03.7]} 47. Rc6+
{[%clk 0:00:46.2]} 47... Kg7 {[%clk 0:00:03.7]} 48. a7 {[%clk 0:00:45.8]} 48...
Rh7 {[%clk 0:00:03.6]} 49. Rc7+ {[%clk 0:00:44.8]} 1-0

[Event "Late-Titled-Tuesday-Blitz-March-05-2024"]
[Site "Chess.com"]
[Date "2024.03.05"]
[Round "8"]
[White "lefonghua"]
[Black "Quattroporte300"]
[Result "1-0"]
[WhiteElo "2602"]
[BlackElo "2465"]
[TimeControl "180+1"]
[EndTime "15:25:16 PST"]
[Termination "lefonghua won on time"]

1. d4 {[%clk 0:03:00.9]} 1... d5 {[%clk 0:02:59.5]} 2. c4 {[%clk 0:03:00.8]}
2... dxc4 {[%clk 0:02:59.5]} 3. Nf3 {[%clk 0:03:00.7]} 3... Nf6 {[%clk
0:02:59.9]} 4. e3 {[%clk 0:03:01.1]} 4... e6 {[%clk 0:03:00.4]} 5. Bxc4 {[%clk
0:03:01.5]} 5... a6 {[%clk 0:03:01.1]} 6. Bb3 {[%clk 0:02:59.9]} 6... c5 {[%clk
0:03:00.3]} 7. O-O {[%clk 0:03:00.1]} 7... Nc6 {[%clk 0:03:00.3]} 8. Nc3 {[%clk
0:02:59.2]} 8... Be7 {[%clk 0:02:56.3]} 9. Qe2 {[%clk 0:02:58.7]} 9... O-O
{[%clk 0:02:56.5]} 10. Rd1 {[%clk 0:02:57.9]} 10... Qc7 {[%clk 0:02:53.1]} 11.
dxc5 {[%clk 0:02:54.9]} 11... Bxc5 {[%clk 0:02:52]} 12. Bd2 {[%clk 0:02:55.4]}
12... e5 {[%clk 0:02:49.7]} 13. Nd5 {[%clk 0:02:46.8]} 13... Nxd5 {[%clk
0:02:49.1]} 14. Bxd5 {[%clk 0:02:47.7]} 14... Qe7 {[%clk 0:02:42.4]} 15. Bxc6
{[%clk 0:02:41]} 15... bxc6 {[%clk 0:02:41.9]} 16. e4 {[%clk 0:02:41.3]} 16...
Bg4 {[%clk 0:02:37.1]} 17. h3 {[%clk 0:02:41.3]} 17... Bh5 {[%clk 0:02:36.5]}
18. Be3 {[%clk 0:02:41.6]} 18... Bd6 {[%clk 0:02:30.3]} 19. Rac1 {[%clk
0:02:37.4]} 19... c5 {[%clk 0:02:12.7]} 20. Rd5 {[%clk 0:02:27.6]} 20... Rfc8
{[%clk 0:01:59.3]} 21. g4 {[%clk 0:02:11.4]} 21... Bg6 {[%clk 0:01:57.7]} 22.
Nd2 {[%clk 0:02:11]} 22... f6 {[%clk 0:01:50.8]} 23. Nc4 {[%clk 0:02:09.3]}
23... Bc7 {[%clk 0:01:05.8]} 24. Bxc5 {[%clk 0:02:00.4]} 24... Qe6 {[%clk
0:01:05.7]} 25. b4 {[%clk 0:01:53]} 25... Be8 {[%clk 0:01:02]} 26. f3 {[%clk
0:01:40.3]} 26... Bb5 {[%clk 0:00:58.6]} 27. Qc2 {[%clk 0:01:36.1]} 27... h5
{[%clk 0:00:54.6]} 28. Kg2 {[%clk 0:01:34.9]} 28... Bc6 {[%clk 0:00:51.5]} 29.
Rd2 {[%clk 0:01:31.4]} 29... Kh7 {[%clk 0:00:43.1]} 30. Ne3 {[%clk 0:01:27.1]}
30... a5 {[%clk 0:00:35.5]} 31. a3 {[%clk 0:01:24.8]} 31... axb4 {[%clk
0:00:35.1]} 32. axb4 {[%clk 0:01:25.7]} 32... Bb5 {[%clk 0:00:24.4]} 33. Nd5
{[%clk 0:01:20.5]} 33... Bd8 {[%clk 0:00:21.4]} 34. Qc3 {[%clk 0:01:12.5]} 34...
Rc6 {[%clk 0:00:20.3]} 35. Qe3 {[%clk 0:01:10.9]} 35... Rac8 {[%clk 0:00:12.8]}
36. Qf2 {[%clk 0:01:09.6]} 36... Qf7 {[%clk 0:00:11.7]} 37. Qh4 {[%clk 0:01:07]}
37... f5 {[%clk 0:00:06.9]} 38. Qxh5+ {[%clk 0:01:02.8]} 38... Qxh5 {[%clk
0:00:07.3]} 39. gxh5 {[%clk 0:01:03.7]} 39... fxe4 {[%clk 0:00:06.2]} 40. Re1
{[%clk 0:00:54]} 40... exf3+ {[%clk 0:00:05.9]} 41. Kxf3 {[%clk 0:00:54.9]}
41... Rh6 {[%clk 0:00:05.9]} 42. Rxe5 {[%clk 0:00:53.9]} 42... Bh4 {[%clk
0:00:06]} 43. Kg4 {[%clk 0:00:53.4]} 43... Bd8 {[%clk 0:00:03.5]} 44. Rf2 {[%clk
0:00:44.1]} 44... Bd7+ {[%clk 0:00:03.7]} 45. Kg3 {[%clk 0:00:43.1]} 45... Bc7
{[%clk 0:00:02.7]} 46. Nxc7 {[%clk 0:00:43.3]} 46... Rxc7 {[%clk 0:00:03.6]} 47.
Rf7 {[%clk 0:00:42.5]} 47... Rb7 {[%clk 0:00:03]} 48. Ree7 {[%clk 0:00:42.2]}
48... Bc6 {[%clk 0:00:01.9]} 49. Rxg7+ {[%clk 0:00:40.8]} 1-0

[Event "Late-Titled-Tuesday-Blitz-March-05-2024"]
[Site "Chess.com"]
[Date "2024.03.05"]
[Round "8"]
[White "ACollins05"]
[Black "SchmakAttack"]
[Result "0-1"]
[WhiteElo "2609"]
[BlackElo "2823"]
[TimeControl "180+1"]
[EndTime "15:25:17 PST"]
[Termination "SchmakAttack won by checkmate"]

1. d4 {[%clk 0:02:51.8]} 1... Nf6 {[%clk 0:02:59.4]} 2. c4 {[%clk 0:02:34.3]}
2... e6 {[%clk 0:02:58.4]} 3. Nf3 {[%clk 0:02:33.9]} 3... b6 {[%clk 0:02:57.2]}
4. g3 {[%clk 0:02:33.9]} 4... Bb7 {[%clk 0:02:57.6]} 5. Bg2 {[%clk 0:02:33.8]}
5... Be7 {[%clk 0:02:58.4]} 6. O-O {[%clk 0:02:33.9]} 6... O-O {[%clk
0:02:59.1]} 7. Nc3 {[%clk 0:02:33.6]} 7... Ne4 {[%clk 0:02:59.1]} 8. Bd2 {[%clk
0:02:32.5]} 8... f5 {[%clk 0:02:58.5]} 9. Ne5 {[%clk 0:02:32.4]} 9... d6 {[%clk
0:02:48]} 10. Nd3 {[%clk 0:02:30.8]} 10... Nxc3 {[%clk 0:01:21.4]} 11. Bxc3
{[%clk 0:02:28.8]} 11... Bxg2 {[%clk 0:01:22.3]} 12. Kxg2 {[%clk 0:02:29.2]}
12... Qd7 {[%clk 0:01:18.1]} 13. Rc1 {[%clk 0:02:28.5]} 13... Bf6 {[%clk
0:01:13.8]} 14. d5 {[%clk 0:02:25.4]} 14... Bxc3 {[%clk 0:01:12]} 15. Rxc3
{[%clk 0:02:24.2]} 15... e5 {[%clk 0:01:12.4]} 16. f3 {[%clk 0:02:21.1]} 16...
Qe7 {[%clk 0:01:11.6]} 17. e4 {[%clk 0:02:20.9]} 17... fxe4 {[%clk 0:01:10.2]}
18. fxe4 {[%clk 0:02:20.5]} 18... Nd7 {[%clk 0:01:10.9]} 19. Rc2 {[%clk
0:02:19.9]} 19... Rxf1 {[%clk 0:01:09.9]} 20. Qxf1 {[%clk 0:02:20.8]} 20... Rf8
{[%clk 0:01:09.5]} 21. Rf2 {[%clk 0:02:20.6]} 21... Rxf2+ {[%clk 0:01:10]} 22.
Qxf2 {[%clk 0:02:21]} 22... Qg5 {[%clk 0:01:06.5]} 23. h4 {[%clk 0:02:17.2]}
23... Qg6 {[%clk 0:01:06]} 24. Qf3 {[%clk 0:02:12.5]} 24... Nf6 {[%clk
0:01:06.5]} 25. Nf2 {[%clk 0:02:12.3]} 25... h5 {[%clk 0:01:07.2]} 26. Kf1
{[%clk 0:02:11]} 26... Kf7 {[%clk 0:00:55.7]} 27. Ke2 {[%clk 0:02:10.8]} 27...
Ke7 {[%clk 0:00:56.2]} 28. Kd3 {[%clk 0:02:07.4]} 28... Kd7 {[%clk 0:00:52.8]}
29. Nh3 {[%clk 0:02:06.9]} 29... c6 {[%clk 0:00:49.5]} 30. dxc6+ {[%clk
0:02:03]} 30... Kxc6 {[%clk 0:00:50.4]} 31. Ng5 {[%clk 0:02:02.4]} 31... Qe8
{[%clk 0:00:37.6]} 32. Qd1 {[%clk 0:01:58.8]} 32... Qc8 {[%clk 0:00:33]} 33.
Qa4+ {[%clk 0:01:58.1]} 33... Kb7 {[%clk 0:00:33.7]} 34. Qb4 {[%clk 0:01:52]}
34... Qg4 {[%clk 0:00:21.5]} 35. Qe1 {[%clk 0:01:44.4]} 35... a5 {[%clk
0:00:19.6]} 36. Qe3 {[%clk 0:01:29.6]} 36... Qd1+ {[%clk 0:00:19.4]} 37. Qd2
{[%clk 0:01:28]} 37... Qb1+ {[%clk 0:00:19.5]} 38. Kc3 {[%clk 0:01:23.2]} 38...
Qxe4 {[%clk 0:00:16.1]} 39. Qxd6 {[%clk 0:01:18.7]} 39... Qe3+ {[%clk
0:00:15.7]} 40. Qd3 {[%clk 0:01:17.7]} 40... Qe1+ {[%clk 0:00:16.2]} 41. Kc2
{[%clk 0:01:16.5]} 41... e4 {[%clk 0:00:16.4]} 42. Qd6 {[%clk 0:01:03.1]} 42...
e3 {[%clk 0:00:16.1]} 43. Ne6 {[%clk 0:00:59.5]} 43... Qe2+ {[%clk 0:00:08.8]}
44. Kb3 {[%clk 0:00:53.5]} 44... Qf3 {[%clk 0:00:07.3]} 45. Nd4 {[%clk
0:00:46.2]} 45... Qe4 {[%clk 0:00:05.3]} 46. c5 {[%clk 0:00:38.6]} 46... Qd3+
{[%clk 0:00:04.8]} 47. Ka4 {[%clk 0:00:32.7]} 47... Qc4+ {[%clk 0:00:05.1]} 48.
Ka3 {[%clk 0:00:29.5]} 48... Qb4# {[%clk 0:00:06]} 0-1

[Event "Late-Titled-Tuesday-Blitz-March-05-2024"]
[Site "Chess.com"]
[Date "2024.03.05"]
[Round "8"]
[White "SameerMujumdar"]
[Black "karinachess1"]
[Result "0-1"]
[WhiteElo "2437"]
[BlackElo "2592"]
[TimeControl "180+1"]
[EndTime "15:25:18 PST"]
[Termination "karinachess1 won by resignation"]

1. e4 {[%clk 0:02:50]} 1... e5 {[%clk 0:03:00]} 2. Nf3 {[%clk 0:02:47.2]} 2...
Nc6 {[%clk 0:03:00.3]} 3. Bb5 {[%clk 0:02:45.7]} 3... Nf6 {[%clk 0:03:00.2]} 4.
d3 {[%clk 0:02:44.6]} 4... d6 {[%clk 0:03:00.6]} 5. O-O {[%clk 0:02:44.1]} 5...
Bd7 {[%clk 0:03:01.1]} 6. a3 {[%clk 0:02:38.3]} 6... g6 {[%clk 0:03:01.5]} 7.
Nc3 {[%clk 0:02:36.4]} 7... Bg7 {[%clk 0:03:01.7]} 8. h3 {[%clk 0:02:36.7]} 8...
O-O {[%clk 0:03:01.9]} 9. Bg5 {[%clk 0:02:36.3]} 9... Qe8 {[%clk 0:03:01.6]} 10.
Qd2 {[%clk 0:02:29.8]} 10... a6 {[%clk 0:02:57.5]} 11. Bc4 {[%clk 0:02:29.2]}
11... Nh5 {[%clk 0:02:52.9]} 12. Nd5 {[%clk 0:02:22.2]} 12... Rc8 {[%clk
0:02:47.7]} 13. g4 {[%clk 0:02:18.6]} 13... Nf4 {[%clk 0:02:34.7]} 14. Nxf4
{[%clk 0:02:18.8]} 14... exf4 {[%clk 0:02:33.4]} 15. Bxf4 {[%clk 0:02:19.7]}
15... Ne5 {[%clk 0:02:18]} 16. Nxe5 {[%clk 0:02:16.7]} 16... dxe5 {[%clk
0:02:07.2]} 17. Be3 {[%clk 0:02:11.3]} 17... Qe7 {[%clk 0:02:06.8]} 18. b4
{[%clk 0:02:09.9]} 18... Rfe8 {[%clk 0:01:51.1]} 19. Bg5 {[%clk 0:02:04.5]}
19... Qd6 {[%clk 0:01:46]} 20. Rad1 {[%clk 0:01:51]} 20... Be6 {[%clk
0:01:45.1]} 21. Bxe6 {[%clk 0:01:40.7]} 21... Qxe6 {[%clk 0:01:46]} 22. f4
{[%clk 0:01:38.2]} 22... f6 {[%clk 0:01:44.6]} 23. f5 {[%clk 0:01:37.2]} 23...
Qd7 {[%clk 0:01:26.2]} 24. Be3 {[%clk 0:01:33.5]} 24... g5 {[%clk 0:01:19.2]}
25. Qf2 {[%clk 0:01:31.3]} 25... h6 {[%clk 0:01:18]} 26. h4 {[%clk 0:01:30.6]}
26... Kf7 {[%clk 0:01:16.1]} 27. Kg2 {[%clk 0:01:30.4]} 27... b6 {[%clk
0:01:14]} 28. Rh1 {[%clk 0:01:30.1]} 28... Rh8 {[%clk 0:01:14.2]} 29. Rh2 {[%clk
0:01:24.5]} 29... Qa4 {[%clk 0:01:11.9]} 30. Ra1 {[%clk 0:01:17.7]} 30... a5
{[%clk 0:01:08.6]} 31. hxg5 {[%clk 0:01:10.8]} 31... hxg5 {[%clk 0:01:08.2]} 32.
Rxh8 {[%clk 0:01:11.7]} 32... Rxh8 {[%clk 0:01:08.6]} 33. bxa5 {[%clk 0:01:08]}
33... Qxa5 {[%clk 0:01:08.1]} 34. Qd2 {[%clk 0:01:06.9]} 34... Qa4 {[%clk
0:00:51.1]} 35. Qc3 {[%clk 0:01:06.4]} 35... Qd7 {[%clk 0:00:48.5]} 36. a4
{[%clk 0:01:01.7]} 36... Ra8 {[%clk 0:00:42]} 37. a5 {[%clk 0:01:00.7]} 37...
bxa5 {[%clk 0:00:30.7]} 38. Rxa5 {[%clk 0:01:01.6]} 38... Rxa5 {[%clk
0:00:28.9]} 39. Qxa5 {[%clk 0:01:02.5]} 39... Bf8 {[%clk 0:00:29.4]} 40. Qa2+
{[%clk 0:00:59.5]} 40... Kg7 {[%clk 0:00:29]} 41. Qc4 {[%clk 0:01:00.4]} 41...
Qd6 {[%clk 0:00:27.4]} 42. Kf3 {[%clk 0:00:57.1]} 42... Be7 {[%clk 0:00:24.9]}
43. Bd2 {[%clk 0:00:55.6]} 43... Qb6 {[%clk 0:00:22.7]} 44. Kg2 {[%clk
0:00:43.7]} 44... Bd6 {[%clk 0:00:20.1]} 45. Qe6 {[%clk 0:00:38.7]} 45... Qb1
{[%clk 0:00:19.6]} 46. Qb3 {[%clk 0:00:33.8]} 46... Qd1 {[%clk 0:00:18.6]} 47.
Qc3 {[%clk 0:00:27.3]} 47... Qxg4+ {[%clk 0:00:18]} 48. Kf2 {[%clk 0:00:27.7]}
48... Qh4+ {[%clk 0:00:18.5]} 49. Kg2 {[%clk 0:00:27.9]} 49... g4 {[%clk
0:00:18.7]} 50. Be1 {[%clk 0:00:28.1]} 50... Qh3+ {[%clk 0:00:18.9]} 51. Kg1
{[%clk 0:00:28]} 51... g3 {[%clk 0:00:18.2]} 52. Qd2 {[%clk 0:00:28.7]} 52...
Bc5+ {[%clk 0:00:17.9]} 0-1

[Event "Late-Titled-Tuesday-Blitz-March-05-2024"]
[Site "Chess.com"]
[Date "2024.03.05"]
[Round "8"]
[White "Beca95"]
[Black "alexrustemov"]
[Result "1-0"]
[WhiteElo "2968"]
[BlackElo "2797"]
[TimeControl "180+1"]
[EndTime "15:25:23 PST"]
[Termination "Beca95 won on time"]

1. Nf3 {[%clk 0:02:56.1]} 1... d5 {[%clk 0:02:59.6]} 2. c4 {[%clk 0:02:56.3]}
2... c6 {[%clk 0:02:59]} 3. d3 {[%clk 0:02:54.5]} 3... dxc4 {[%clk 0:02:56.5]}
4. dxc4 {[%clk 0:02:54.6]} 4... Qxd1+ {[%clk 0:02:55.8]} 5. Kxd1 {[%clk
0:02:55.5]} 5... Nf6 {[%clk 0:02:55.4]} 6. Nc3 {[%clk 0:02:55.3]} 6... Na6
{[%clk 0:02:49.4]} 7. h3 {[%clk 0:02:52.8]} 7... Bf5 {[%clk 0:02:47.6]} 8. g4
{[%clk 0:02:50.1]} 8... Rd8+ {[%clk 0:02:45]} 9. Bd2 {[%clk 0:02:50.1]} 9... Bg6
{[%clk 0:02:23.3]} 10. Ne5 {[%clk 0:02:49.6]} 10... e6 {[%clk 0:02:17]} 11. Nxg6
{[%clk 0:02:49]} 11... hxg6 {[%clk 0:02:16]} 12. Bg2 {[%clk 0:02:49]} 12... Bd6
{[%clk 0:02:01.3]} 13. a3 {[%clk 0:02:44.1]} 13... Nc5 {[%clk 0:01:56.9]} 14.
Kc2 {[%clk 0:02:43.8]} 14... Be5 {[%clk 0:01:54.7]} 15. Rad1 {[%clk 0:02:43.3]}
15... Ke7 {[%clk 0:01:40]} 16. b4 {[%clk 0:02:40.1]} 16... Ncd7 {[%clk
0:01:24.6]} 17. Be3 {[%clk 0:02:39.3]} 17... a6 {[%clk 0:01:20.1]} 18. Na4
{[%clk 0:02:20.8]} 18... Rhe8 {[%clk 0:00:53.6]} 19. Bd2 {[%clk 0:01:59.2]}
19... Bc7 {[%clk 0:00:49.4]} 20. g5 {[%clk 0:01:58.4]} 20... Nh5 {[%clk
0:00:47.9]} 21. e3 {[%clk 0:01:58.5]} 21... Ne5 {[%clk 0:00:36.1]} 22. c5 {[%clk
0:01:54.9]} 22... Nd3 {[%clk 0:00:21.8]} 23. Rhf1 {[%clk 0:01:54.3]} 23... Rd7
{[%clk 0:00:20.8]} 24. Be4 {[%clk 0:01:44.4]} 24... Red8 {[%clk 0:00:20.6]} 25.
Bc3 {[%clk 0:01:44.4]} 25... Ne5 {[%clk 0:00:11.3]} 26. Rxd7+ {[%clk 0:01:44]}
26... Rxd7 {[%clk 0:00:11.2]} 27. Rg1 {[%clk 0:01:39.2]} 27... Rd8 {[%clk
0:00:07.9]} 28. Nb2 {[%clk 0:01:32.8]} 28... Kf8 {[%clk 0:00:07]} 29. f4 {[%clk
0:01:32.4]} 29... Nd7 {[%clk 0:00:06.9]} 30. Nc4 {[%clk 0:01:32.3]} 30... Ke7
{[%clk 0:00:06.7]} 31. Bf3 {[%clk 0:01:28.3]} 31... Nf8 {[%clk 0:00:06.1]} 32.
h4 {[%clk 0:01:25.9]} 32... Nd7 {[%clk 0:00:05.7]} 33. Bxh5 {[%clk 0:01:17.8]}
33... gxh5 {[%clk 0:00:04.1]} 34. Bxg7 {[%clk 0:01:18.2]} 34... Rg8 {[%clk
0:00:03.6]} 35. Bc3 {[%clk 0:01:15.9]} 35... Rg6 {[%clk 0:00:01.8]} 36. Rd1
{[%clk 0:01:14.6]} 36... Rg8 {[%clk 0:00:01.3]} 37. a4 {[%clk 0:01:06.2]} 37...
Rd8 {[%clk 0:00:01.6]} 38. Rf1 {[%clk 0:00:56.4]} 38... Ke8 {[%clk 0:00:01.7]}
39. e4 {[%clk 0:00:56.3]} 39... Nf8 {[%clk 0:00:01.7]} 40. Bf6 {[%clk
0:00:42.9]} 40... Rd7 {[%clk 0:00:01.3]} 41. f5 {[%clk 0:00:42.9]} 41... exf5
{[%clk 0:00:01.1]} 42. exf5 {[%clk 0:00:42.7]} 42... Bg3 {[%clk 0:00:01.7]} 43.
Rf3 {[%clk 0:00:41.8]} 43... Bxh4 {[%clk 0:00:01.5]} 44. Re3+ {[%clk 0:00:41.8]}
1-0

[Event "Late-Titled-Tuesday-Blitz-March-05-2024"]
[Site "Chess.com"]
[Date "2024.03.05"]
[Round "8"]
[White "Practical-Play"]
[Black "norwaytoadog"]
[Result "1-0"]
[WhiteElo "2586"]
[BlackElo "2299"]
[TimeControl "180+1"]
[EndTime "15:25:23 PST"]
[Termination "Practical-Play won on time"]

1. e4 {[%clk 0:03:00.9]} 1... c5 {[%clk 0:02:59.5]} 2. c3 {[%clk 0:02:59.8]}
2... d5 {[%clk 0:02:59.3]} 3. exd5 {[%clk 0:02:59.8]} 3... Qxd5 {[%clk
0:02:59.9]} 4. d4 {[%clk 0:02:59.9]} 4... Nc6 {[%clk 0:03:00.1]} 5. Nf3 {[%clk
0:02:59.8]} 5... Bg4 {[%clk 0:03:00]} 6. Be2 {[%clk 0:02:59.5]} 6... cxd4 {[%clk
0:03:00.3]} 7. cxd4 {[%clk 0:02:55]} 7... e6 {[%clk 0:03:00.6]} 8. Nc3 {[%clk
0:02:54.9]} 8... Bb4 {[%clk 0:03:00.9]} 9. O-O {[%clk 0:02:55.1]} 9... Qa5
{[%clk 0:02:58.8]} 10. h3 {[%clk 0:02:51]} 10... Bxf3 {[%clk 0:02:58.6]} 11.
Bxf3 {[%clk 0:02:50.7]} 11... Nge7 {[%clk 0:02:59]} 12. d5 {[%clk 0:02:45.5]}
12... exd5 {[%clk 0:02:54.4]} 13. Bxd5 {[%clk 0:02:03.4]} 13... Rd8 {[%clk
0:02:37.7]} 14. Bxc6+ {[%clk 0:01:58.8]} 14... bxc6 {[%clk 0:02:37.7]} 15. Qf3
{[%clk 0:01:55.9]} 15... O-O {[%clk 0:02:27.1]} 16. Be3 {[%clk 0:01:40.7]} 16...
Nd5 {[%clk 0:02:18.8]} 17. Nxd5 {[%clk 0:01:35.1]} 17... Rxd5 {[%clk 0:02:10.2]}
18. a3 {[%clk 0:01:28.7]} 18... Be7 {[%clk 0:02:05.2]} 19. Rac1 {[%clk
0:01:27.8]} 19... Bf6 {[%clk 0:01:59.6]} 20. b4 {[%clk 0:01:16.2]} 20... Qxa3
{[%clk 0:01:54.4]} 21. Rxc6 {[%clk 0:01:15.7]} 21... Rfd8 {[%clk 0:01:27.1]} 22.
Qg3 {[%clk 0:00:50.3]} 22... Be5 {[%clk 0:01:15.5]} 23. Qf3 {[%clk 0:00:49.6]}
23... Bf6 {[%clk 0:01:03.8]} 24. Qe4 {[%clk 0:00:44.4]} 24... Re5 {[%clk
0:00:59.8]} 25. Qg4 {[%clk 0:00:39.5]} 25... Kh8 {[%clk 0:00:45.6]} 26. Bd4
{[%clk 0:00:25.2]} 26... Ree8 {[%clk 0:00:16.2]} 27. Rxf6 {[%clk 0:00:21.4]}
27... Rxd4 {[%clk 0:00:13.4]} 28. Qxd4 {[%clk 0:00:21.3]} 28... gxf6 {[%clk
0:00:13.1]} 29. Qxf6+ {[%clk 0:00:22.2]} 29... Kg8 {[%clk 0:00:13.5]} 30. Rd1
{[%clk 0:00:19.9]} 30... Qxb4 {[%clk 0:00:12]} 31. Rd4 {[%clk 0:00:19.3]} 31...
Qb1+ {[%clk 0:00:11.1]} 32. Kh2 {[%clk 0:00:19.3]} 32... Qb8+ {[%clk 0:00:10.2]}
33. g3 {[%clk 0:00:18.1]} 33... Kf8 {[%clk 0:00:09.4]} 34. Qh8+ {[%clk
0:00:15.5]} 34... Ke7 {[%clk 0:00:09.3]} 35. Qxh7 {[%clk 0:00:14.3]} 35... Qb2
{[%clk 0:00:05.4]} 36. Rf4 {[%clk 0:00:12.9]} 36... Kd8 {[%clk 0:00:02.3]} 37.
Qxf7 {[%clk 0:00:12.5]} 37... Re2 {[%clk 0:00:01.5]} 38. Qxa7 {[%clk 0:00:11.7]}
1-0